bitfinex-derivatives/quotes_ETHF0:USTF0_20220106
["timestamp","ask_amount","ask_price","bid_price","bid_amount"]
[1641468840687,0.16871423,3350.1,3348.2,1.50006433]
[1641468840886,2.00479,3349.4,3349.3,1.5]
[1641468841085,2.464772,3349.4,3349.3,1.897182]
[1641468842686,2.464772,3349.4,3348.8,1.08314669]
[1641468842887,2.464772,3349.4,3348.9,0.397182]
[1641468843185,2.464772,3349.4,3349.1,1.5]
[1641468843387,2.00479,3349.4,3349.3,1.5]
[1641468843586,2.00479,3349.4,3349.1,0.397182]
[1641468843785,2.464772,3349.4,3349.1,0.397182]
[1641468844186,2.00479,3349.4,3349.1,0.397182]
[1641468844590,0.459982,3349.3,3349.1,0.397182]
[1641468844787,0.857164,3349.3,3348.8,3.09347622]
[1641468845187,0.397182,3349.3,3348.8,3.09347622]
[1641468846191,0.397182,3349.3,3348.8,1.08314669]
[1641468847290,1.49249053,3349.1,3348.6,2.00479]
[1641468847591,0.397182,3349.0,3348.4,2.01032953]
[1641468847992,1.49269104,3348.6,3348.4,1.50072953]
[1641468848189,0.857164,3348.5,3348.4,2.953e-05]
[1641468848791,0.857164,3348.5,3348.4,1.5]
[1641468848991,2.861954,3348.5,3348.4,1.5]
[1641468849191,2.861954,3348.5,3348.0,2.953e-05]
[1641468849796,2.861954,3348.5,3347.7,3.6050167]
[1641468850097,2.861954,3348.5,3347.5,5.35570037]
[1641468850295,2.861954,3348.5,3348.1,1.33842375]
[1641468850494,2.861954,3348.5,3347.3,2.51318277]
[1641468850694,2.861954,3348.5,3347.2,5.467]
[1641468850897,2.00479,3347.4,3347.1,3.35091037]
[1641468851095,0.857164,3347.3,3347.1,3.35091037]
[1641468851895,0.857164,3347.3,3346.7,1.5]
[1641468852098,0.857164,3347.3,3346.6,6.82822898]
[1641468852299,0.857164,3347.3,3346.7,1.32916011]
[1641468852897,0.857164,3347.3,3346.7,1.96193313]
[1641468853098,0.16212244,3347.4,3346.7,1.96193313]
[1641468853297,0.16212244,3347.4,3346.7,0.63277302]
[1641468854198,0.16212244,3347.4,3346.8,0.63277302]
[1641468854797,0.66212244,3347.4,3346.8,0.63277302]
[1641468855400,0.66212244,3347.4,3346.8,1.00118456]
[1641468855699,0.50282782,3347.4,3346.8,1.00118456]
[1641468856099,0.50282782,3347.4,3347.3,1.5]
[1641468856299,0.65604582,3347.4,3347.3,1.5]
[1641468856799,0.50282782,3347.4,3347.3,0.459982]
[1641468857399,0.50282782,3347.4,3347.3,0.857164]
[1641468857800,2.11877271,3349.1,3347.3,0.857164]
[1641468857999,1.49247271,3349.1,3348.3,1.5]
[1641468858200,1.49247271,3349.1,3348.4,0.397182]
[1641468858800,1.49247271,3349.1,3348.5,1.43742616]
[1641468859001,2.00479,3348.9,3348.5,1.43742616]
[1641468861904,2.00479,3348.9,3348.4,0.7927]
[1641468862103,2.00479,3348.9,3348.1,1.5]
[1641468862307,2.00479,3348.9,3348.0,1.27990548]
[1641468862504,2.00479,3348.9,3347.6,2.49942281]
[1641468862706,2.00479,3348.9,3347.6,0.99942281]
[1641468862905,2.00479,3348.2,3347.6,0.99942281]
[1641468863709,2.00479,3348.2,3347.7,1.5]
[1641468863909,2.00479,3348.2,3347.7,1.897182]
[1641468864509,2.00479,3348.2,3347.7,0.397182]
[1641468866113,2.00479,3348.2,3348.1,1.5]
[1641468866314,2.00479,3348.2,3348.1,2.357164]
[1641468866512,2.00479,3348.2,3347.4,2.00479]
[1641468866712,1.49323713,3347.5,3346.0,2.00061403]
[1641468867012,2.00479,3347.1,3346.8,1.39660481]
[1641468867414,2.00479,3347.1,3347.0,0.99942281]
[1641468868712,2.464772,3347.1,3347.0,0.99942281]
[1641468868914,2.464772,3347.1,3346.8,0.397182]
[1641468869214,2.00479,3347.1,3346.8,0.397182]
[1641468870023,0.459982,3347.0,3346.4,1.5]
[1641468870222,0.857164,3347.0,3346.4,0.397182]
[1641468870424,0.857164,3347.0,3346.4,1.897182]
[1641468870623,0.857164,3347.0,3346.4,0.397182]
[1641468870825,0.857164,3347.0,3346.5,1.5]
[1641468871024,0.397182,3347.0,3346.5,1.5]
[1641468871226,0.397182,3347.0,3346.6,0.397182]
[1641468871429,2.00479,3347.1,3346.6,0.397182]
[1641468871626,1.49322152,3347.4,3347.0,1.5]
[1641468871826,1.49322152,3347.4,3347.3,1.5]
[1641468872026,1.49322152,3347.4,3346.3,3.2012667]
[1641468872027,1.95320352,3347.4,3346.3,3.2012667]
[1641468872630,1.49322152,3347.4,3347.3,1.5]
[1641468872827,1.49304094,3347.9,3347.3,1.897182]
[1641468873027,2.00479,3348.0,3347.3,0.397182]
[1641468873227,2.00479,3348.0,3347.4,1.5]
[1641468873427,2.00479,3348.0,3347.2,1.901972]
[1641468873729,33.86972337,3352.7,3347.9,1.5]
[1641468873928,16.1692,3350.0,3348.8,1.5]
[1641468874128,1.459982,3348.9,3348.8,1.5]
[1641468875331,1.459982,3348.9,3348.8,1.0]
[1641468875830,1.459982,3348.9,3348.5,2.00479]
[1641468876429,1.857164,3348.9,3348.5,2.00479]
[1641468876829,1.49265093,3348.7,3348.5,1.50479]
[1641468877033,1.49265093,3348.7,3348.6,1.0]
[1641468877231,1.95263293,3348.7,3348.6,1.0]
[1641468877432,1.95263293,3348.7,3348.6,0.5]
[1641468877832,0.459982,3348.7,3348.6,0.5]
[1641468878033,0.459982,3348.7,3348.1,2.00479]
[1641468878234,0.459982,3348.7,3348.4,0.5]
[1641468878834,0.459982,3348.7,3348.1,2.00479]
[1641468880137,0.397182,3348.6,3348.1,2.00479]
[1641468880335,0.397182,3348.6,3348.1,2.50479]
[1641468880536,0.397182,3348.6,3348.3,0.5]
[1641468880734,0.459982,3348.5,3348.3,0.5]
[1641468881835,0.459982,3348.5,3348.1,2.00479]
[1641468882035,0.857164,3348.5,3348.1,2.00479]
[1641468884735,1.357164,3348.5,3348.1,2.00479]
[1641468885137,1.357164,3348.5,3348.4,0.5]
[1641468885541,0.959982,3348.5,3348.1,2.00479]
[1641468885739,0.959982,3348.5,3348.3,0.5]
[1641468885938,0.5,3348.5,3348.3,0.5]
[1641468886144,0.459982,3348.4,3348.3,0.5]
[1641468886339,0.459982,3348.4,3348.1,2.00479]
[1641468886741,0.459982,3348.4,3348.2,0.5]
[1641468886940,0.459982,3348.4,3348.1,2.00479]
[1641468886941,0.5,3348.5,3348.1,2.00479]
[1641468887240,0.5,3348.5,3348.3,0.5]
[1641468887439,0.459982,3348.4,3348.1,2.50479]
[1641468887641,0.5,3348.5,3348.3,0.5]
[1641468887843,1.0,3348.5,3348.3,0.5]
[1641468889440,1.0,3348.5,3348.4,0.5]
[1641468889640,1.459982,3348.5,3348.4,0.5]
[1641468890041,1.0,3348.5,3348.4,0.5]
[1641468890741,1.459982,3348.5,3348.4,0.5]
[1641468891142,1.459982,3348.5,3348.1,2.00479]
[1641468891343,1.459982,3348.5,3348.4,0.5]
[1641468892344,1.0,3348.5,3348.4,0.5]
[1641468892543,1.459982,3348.5,3348.4,0.5]
[1641468897050,1.459982,3348.5,3348.2,0.99942281]
[1641468897249,1.459982,3348.5,3348.4,0.5]
[1641468897750,3.3498996,3348.5,3348.2,0.99942281]
[1641468897950,1.0,3348.3,3347.0,3.35091037]
[1641468898152,1.0,3347.8,3347.0,3.35091037]
[1641468898351,0.459982,3347.7,3347.0,3.35091037]
[1641468898950,1.8904615,3347.6,3347.5,2.00061403]
[1641468899151,4.8952515,3347.6,3347.0,3.35091037]
[1641468899351,1.0,3347.3,3347.0,3.35091037]
[1641468899551,2.684664,3347.3,3347.0,3.35091037]
[1641468899953,1.684664,3347.3,3347.0,3.35091037]
[1641468900155,2.684664,3347.3,3347.0,3.35091037]
[1641468900454,3.17812191,3347.3,3346.8,2.01568128]
[1641468901253,2.00479,3347.0,3346.8,2.01568128]
[1641468901453,2.00479,3347.0,3346.5,4.44011536]
[1641468901656,0.397182,3346.9,3346.7,0.49945148]
[1641468902655,0.397182,3346.9,3346.8,0.5]
[1641468902855,0.08249759,3346.9,3346.8,0.5]
[1641468903055,2.00479,3347.0,3346.8,2.0]
[1641468903259,1.0,3347.3,3346.8,0.5]
[1641468903455,1.0,3347.3,3347.2,0.5]
[1641468904057,1.0,3347.3,3347.2,0.814684]
[1641468904460,1.49288714,3348.2,3347.2,0.814684]
[1641468904658,66.2954,3348.9,3348.1,0.5]
[1641468904859,1.0,3348.5,3348.1,0.5]
[1641468905259,2.401972,3348.4,3348.1,0.5]
[1641468905461,0.459982,3348.3,3348.1,0.5]
[1641468905661,2.401972,3348.4,3348.1,0.5]
[1641468905862,2.401972,3348.4,3348.1,1.0585]
[1641468906360,0.459982,3348.3,3348.2,0.49945148]
[1641468906560,0.459982,3348.3,3348.2,5.148e-05]
[1641468906759,0.459982,3348.3,3347.2,2.49921765]
[1641468906959,1.459982,3348.3,3347.2,2.49921765]
[1641468907160,2.00479,3347.8,3347.2,2.49921765]
[1641468907362,2.401972,3347.8,3347.3,0.314684]
[1641468907559,3.89502408,3347.8,3347.3,0.314684]
[1641468907759,3.49784208,3347.8,3347.3,0.314684]
[1641468908463,2.00479,3347.8,3347.3,0.314684]
[1641468908861,2.00479,3347.8,3347.6,1.34521047]
[1641468909262,2.00479,3347.8,3347.7,0.314684]
[1641468909864,2.00479,3347.8,3347.6,1.34521047]
[1641468910163,2.95328825,3347.7,3347.6,1.34521047]
[1641468910565,3.35047025,3347.7,3347.6,1.34521047]
[1641468910765,3.35047025,3347.7,3347.1,2.0178157]
[1641468910967,3.35047025,3347.7,3346.4,7.47117304]
[1641468910968,1.0,3347.2,3346.6,2.49921765]
[1641468911173,3.4984866,3346.7,3346.6,2.49921765]
[1641468911366,3.9584686,3346.7,3346.6,2.49921765]
[1641468911766,4.3556506,3346.7,3346.6,2.49921765]
[1641468912267,4.3556506,3346.7,3346.4,0.84371728]
[1641468912471,1.49383048,3346.5,3345.9,2.49921765]
[1641468912671,1.0,3346.3,3345.9,2.49921765]
[1641468913069,1.49408715,3346.0,3345.9,2.49721765]
[1641468913272,5.866744,3346.0,3345.6,6.13552536]
[1641468913473,4.866744,3346.0,3345.6,3.75292536]
[1641468913670,1.49415189,3345.7,3345.6,3.75292536]
[1641468913869,1.89133389,3345.7,3345.6,0.40201499]
[1641468914069,2.35131589,3345.7,3345.6,0.40201499]
[1641468914269,3.15441589,3345.7,3345.6,0.40201499]
[1641468915274,3.15441589,3345.7,3345.0,3.35091037]
[1641468915675,1.49429702,3345.1,3344.1,5.35570037]
[1641468915975,1.0,3344.4,3344.1,3.35091037]
[1641468916174,0.857164,3344.3,3344.1,3.35091037]
[1641468916376,1.49476608,3344.2,3344.1,3.35091037]
[1641468916573,1.89194808,3344.2,3344.1,3.35091037]
[1641468916974,2.35193008,3344.2,3344.1,3.35091037]
[1641468917174,6.36151008,3344.2,3344.1,3.35091037]
[1641468917374,6.36151008,3344.2,3343.1,3.35091037]
[1641468917574,6.36151008,3344.2,3343.4,0.5]
[1641468917974,6.36151008,3344.2,3343.1,3.35091037]
[1641468918173,6.36151008,3344.2,3343.1,4.85091037]
[1641468918376,6.36151008,3344.2,3344.1,0.5]
[1641468918779,6.36151008,3344.2,3343.1,3.35091037]
[1641468918980,6.36151008,3344.2,3343.1,4.85091037]
[1641468919183,4.35672008,3344.2,3343.6,1.00631643]
[1641468919381,4.35672008,3344.2,3343.6,1.50631643]
[1641468919582,4.35672008,3344.2,3343.6,1.00631643]
[1641468919784,5.35672008,3344.2,3343.6,1.00631643]
[1641468920085,4.35672008,3344.2,3343.6,1.00631643]
[1641468920285,5.35672008,3344.2,3343.6,1.00631643]
[1641468920688,5.35672008,3344.2,3343.5,0.5]
[1641468920890,3.861954,3344.2,3343.5,0.5]
[1641468921091,1.49485099,3343.8,3343.5,0.5]
[1641468921286,2.00479,3343.6,3343.5,0.5]
[1641468922087,4.35692566,3343.6,3343.4,1.00631643]
[1641468922689,4.35692566,3343.6,3343.4,1.50631643]
[1641468922889,4.35692566,3343.6,3343.4,1.00631643]
[1641468923090,3.89694366,3343.6,3343.2,1.00631643]
[1641468923290,1.86993823,3343.6,3343.2,1.00631643]
[1641468923490,1.86993823,3343.6,3343.5,0.5]
[1641468923694,1.86993823,3343.6,3343.2,1.00631643]
[1641468923890,1.86993823,3343.6,3343.2,1.50631643]
[1641468924089,1.86993823,3343.6,3343.5,0.5]
[1641468924293,1.86993823,3343.6,3342.9,1.34321643]
[1641468924592,1.86993823,3343.6,3343.1,0.5]
[1641468924795,1.4952019,3343.2,3342.9,1.00631643]
[1641468924993,1.495383,3343.0,3342.9,1.00631643]
[1641468925195,6.504963,3343.0,3342.7,1.00631643]
[1641468925392,0.397182,3342.9,3342.7,1.50631643]
[1641468925592,0.397182,3342.9,3342.7,1.00631643]
[1641468925793,0.459982,3342.8,3342.7,1.00631643]
[1641468926795,0.459982,3342.8,3342.4,0.5]
[1641468926994,0.397182,3342.7,3342.4,0.5]
[1641468927195,2.00479,3342.5,3342.4,0.5]
[1641468927594,2.401972,3342.5,3342.4,0.5]
[1641468929496,2.861954,3342.5,3342.4,0.5]
[1641468929894,2.401972,3342.5,3342.4,0.5]
[1641468930296,2.861954,3342.5,3342.4,0.5]
[1641468931497,2.401972,3342.5,3342.4,0.5]
[1641468932494,2.861954,3342.5,3342.4,0.5]
[1641468933295,3.361954,3342.5,3342.4,0.5]
[1641468934902,3.361954,3342.5,3341.4,2.00479]
[1641468935101,3.861954,3342.5,3342.0,0.5]
[1641468935502,3.861954,3342.5,3342.1,0.5]
[1641468935701,1.0,3342.4,3341.5,0.5]
[1641468936101,1.0,3342.1,3341.0,0.5]
[1641468936302,1.0,3342.4,3341.0,0.5]
[1641468936502,1.0,3342.0,3341.0,0.5]
[1641468936709,1.49593331,3341.4,3340.9,30.7414]
[1641468936907,1.89311531,3341.4,3341.3,0.5]
[1641468937106,2.35309731,3341.4,3340.3,1.00631643]
[1641468937303,2.35309731,3341.4,3340.7,0.5]
[1641468937304,2.00479,3341.0,3340.7,0.5]
[1641468937504,0.397182,3340.9,3340.7,0.5]
[1641468937904,0.459982,3340.8,3340.3,1.00631643]
[1641468938105,0.397182,3340.7,3340.3,1.00631643]
[1641468938604,0.397182,3340.7,3340.6,0.5]
[1641468938803,2.35345544,3340.7,3340.6,0.5]
[1641468939206,0.060282,3340.9,3340.6,0.5]
[1641468939405,0.060282,3340.9,3340.8,0.5]
[1641468939605,0.060282,3340.9,3340.3,0.5]
[1641468939606,0.2135,3340.9,3340.3,0.5]
[1641468940208,0.2135,3340.9,3339.7,2.00479]
[1641468940409,0.2135,3340.9,3340.0,0.5]
[1641468940607,1.49635861,3340.5,3340.0,0.5]
[1641468940808,0.060282,3340.4,3340.0,0.5]
[1641468941211,0.060282,3340.4,3340.2,0.5]
[1641468941409,0.153218,3340.3,3340.2,0.5]
[1641468942709,0.060282,3340.4,3340.2,0.5]
[1641468943309,2.00479,3340.3,3340.2,0.5]
[1641468943710,2.00479,3340.3,3340.2,0.897182]
[1641468943910,1.49617727,3340.9,3340.2,2.397182]
[1641468944111,1.49617727,3340.9,3340.8,0.5]
[1641468944313,1.49617727,3340.9,3340.8,0.959982]
[1641468944712,2.00479,3341.0,3340.8,1.959982]
[1641468944910,2.00479,3341.0,3340.8,2.357164]
[1641468945315,0.060282,3341.2,3340.8,0.857164]
[1641468945512,0.060282,3341.2,3340.8,0.459982]
[1641468945714,0.060282,3341.2,3340.8,1.058782]
[1641468945912,0.060282,3341.2,3340.8,2.558782]
[1641468946115,3.50074345,3341.4,3340.9,0.397182]
[1641468946313,3.50074345,3341.4,3341.2,1.5]
[1641468946514,1.49566034,3342.3,3341.3,0.459982]
[1641468946712,1.49566034,3342.3,3341.6,1.5]
[1641468946916,1.49566034,3342.3,3341.7,0.397182]
[1641468947416,0.060282,3342.2,3341.7,0.397182]
[1641468947715,0.060282,3342.2,3341.5,2.00479]
[1641468947914,2.17305734,3342.2,3341.5,1.50479]
[1641468948315,0.677482,3342.2,3341.5,1.50479]
[1641468948613,1.49574088,3341.8,3341.5,1.50479]
[1641468948813,1.49574088,3341.8,3341.6,0.459982]
[1641468949113,0.060282,3342.0,3341.6,0.459982]
[1641468949312,1.49562455,3342.1,3341.6,0.459982]
[1641468949515,1.49562455,3342.1,3341.6,0.857164]
[1641468950316,0.060282,3342.0,3341.5,1.50479]
[1641468952218,0.842582,3342.0,3341.5,1.50479]
[1641468952418,1.49600492,3341.6,3340.8,0.5988]
[1641468952618,0.060282,3341.5,3340.9,0.397182]
[1641468953420,2.00479,3341.1,3340.9,0.397182]
[1641468953620,0.2135,3341.0,3340.8,0.5988]
[1641468953820,0.060282,3341.0,3340.8,1.058782]
[1641468954022,0.060282,3341.0,3340.8,0.5988]
[1641468954820,0.060282,3341.0,3340.8,1.058782]
[1641468955622,2.00479,3341.1,3340.8,1.058782]
[1641468955822,0.153218,3341.0,3340.8,1.058782]
[1641468956022,2.00479,3341.1,3340.8,1.058782]
[1641468956422,2.00479,3341.1,3340.8,1.455964]
[1641468956922,2.00479,3341.1,3340.9,1.5]
[1641468957125,3.50067407,3341.5,3341.0,0.857164]
[1641468957326,3.50067407,3341.5,3341.2,1.5]
[1641468957524,2.00479,3341.5,3341.3,1.5]
[1641468957724,2.00479,3341.5,3341.3,0.397182]
[1641468957924,2.00479,3341.5,3341.4,0.459982]
[1641468958928,2.00479,3341.5,3341.3,0.357164]
[1641468959326,2.00479,3342.1,3341.3,0.357164]
[1641468959527,3.50041455,3342.1,3341.3,0.357164]
[1641468959828,3.50041455,3342.1,3341.2,1.357164]
[1641468960125,0.142836,3342.0,3341.1,2.00479]
[1641468960526,0.142836,3341.6,3341.1,2.00479]
[1641468960734,0.142836,3341.6,3341.2,0.3369]
[1641468960929,1.49572522,3341.9,3341.2,0.3369]
[1641468961329,0.142836,3342.0,3341.7,1.357164]
[1641468961529,0.142836,3342.0,3341.1,4.00958]
[1641468961530,0.142836,3342.0,3341.8,0.3369]
[1641468961727,0.142836,3342.0,3341.5,1.357164]
[1641468962129,2.401972,3342.1,3341.6,0.3369]
[1641468962330,2.401972,3342.1,3341.1,4.00958]
[1641468962331,0.142836,3341.7,3341.1,4.00958]
[1641468962529,0.142836,3341.7,3341.2,0.3369]
[1641468965032,0.642836,3341.7,3341.2,0.3369]
[1641468965233,0.142836,3341.3,3341.1,2.00479]
[1641468965432,0.142836,3341.3,3340.0,5.467]
[1641468965433,2.464772,3341.2,3340.2,2.00479]
[1641468966533,0.142836,3340.5,3340.2,2.00479]
[1641468966734,2.00479,3341.2,3340.2,2.00479]
[1641468966932,0.142836,3340.5,3340.2,2.00479]
[1641468967134,0.459982,3340.4,3340.2,2.00479]
[1641468967539,0.857164,3340.4,3340.2,2.00479]
[1641468967836,0.142836,3340.3,3339.8,2.00479]
[1641468968037,0.142836,3340.3,3339.8,2.34169]
[1641468968236,0.06246842,3340.3,3339.8,2.34169]
[1641468968838,3.50108144,3340.6,3339.8,2.34169]
[1641468968839,0.06246842,3340.5,3339.8,2.34169]
[1641468969839,0.5,3340.4,3339.8,2.34169]
[1641468970240,0.5,3340.4,3340.3,1.43753158]
[1641468970538,2.00479,3340.6,3340.3,1.77443158]
[1641468970739,9e-05,3340.6,3340.3,1.77443158]
[1641468970939,0.06246842,3341.6,3340.5,0.93753158]
[1641468971139,2.06246842,3341.7,3340.8,0.93753158]
[1641468971342,1.5,3341.7,3341.1,2.00479]
[1641468971539,0.56246842,3341.6,3341.1,2.34169]
[1641468971740,1.897182,3341.7,3341.1,2.34169]
[1641468971939,0.56246842,3341.4,3341.1,2.34169]
[1641468972340,1.5,3341.7,3341.1,2.34169]
[1641468972539,0.56246842,3341.6,3341.1,2.34169]
[1641468972740,0.56246842,3341.6,3341.1,0.3369]
[1641468975444,0.95965042,3341.6,3341.1,0.3369]
[1641468975842,0.56246842,3341.6,3341.1,0.3369]
[1641468977043,2.9957901,3341.7,3341.1,0.3369]
[1641468977846,0.56246842,3341.2,3341.1,0.3369]
[1641468978044,2.9957901,3341.7,3341.1,0.3369]
[1641468978444,1.897182,3341.7,3341.1,0.3369]
[1641468978645,1.49592435,3341.4,3341.1,0.3369]
[1641468979246,0.56246842,3341.2,3340.9,1.00631643]
[1641468979447,0.397182,3341.3,3340.9,1.00631643]
[1641468979847,0.397182,3341.3,3341.1,1.00631643]
[1641468980150,0.459982,3341.2,3341.1,1.00631643]
[1641468980347,0.397182,3341.3,3341.1,1.00631643]
[1641468980947,0.397182,3341.3,3340.9,1.35993522]
[1641468982248,0.56246842,3341.0,3340.9,1.35993522]
[1641468982449,2.91578506,3341.0,3340.9,1.35993522]
[1641468983050,2.91578506,3341.0,3340.9,1.00631643]
[1641468983250,2.91578506,3341.0,3340.7,1.33551146]
[1641468983449,0.56246842,3340.8,3340.5,1.00631643]
[1641468983650,0.56246842,3340.6,3340.5,1.00631643]
[1641468983850,1.26306842,3340.6,3340.5,1.00631643]
[1641468984352,0.7006,3340.6,3340.5,1.00631643]
[1641468984556,1.26306842,3340.6,3340.3,1.33551146]
[1641468984851,0.56246842,3340.4,3340.3,1.69106789]
[1641468985652,6.02377818,3340.4,3339.6,5.000796]
[1641468985853,0.56246842,3339.7,3339.3,5.35570037]
[1641468986052,0.56246842,3339.4,3339.3,5.35570037]
[1641468986253,0.95965042,3339.4,3339.3,2.00479]
[1641468986454,1.41963242,3339.4,3339.3,2.00479]
[1641468987252,1.41963242,3339.4,3339.1,3.35091037]
[1641468987452,2.06246842,3339.2,3338.6,4.61165804]
[1641468987653,0.397182,3339.1,3338.6,4.61165804]
[1641468988054,0.56246842,3338.7,3338.5,0.7392589]
[1641468988254,0.844454,3338.6,3338.5,0.7392589]
[1641468988455,2.05960664,3338.7,3338.5,0.7392589]
[1641468988658,1.49713822,3338.7,3338.6,0.3369]
[1641468988854,0.56246842,3339.0,3338.6,0.3369]
[1641468989254,1.89415886,3339.1,3338.6,0.3369]
[1641468989456,0.397182,3339.1,3337.8,0.93753158]
[1641468989656,0.397182,3339.1,3338.3,2.00479]
[1641468989855,0.56246842,3339.0,3338.4,0.3369]
[1641468990056,0.397182,3339.0,3338.4,0.3369]
[1641468990255,0.384472,3338.9,3338.4,0.3369]
[1641468990857,0.781654,3338.9,3338.4,0.3369]
[1641468991058,1.34412242,3338.9,3338.4,0.3369]
[1641468991462,1.34412242,3338.9,3337.2,4.61165804]
[1641468991463,0.56246842,3338.5,3337.2,4.61165804]
[1641468991660,0.56246842,3337.4,3337.3,2.00479]
[1641468991870,1.02245042,3337.4,3337.2,4.94855804]
[1641468992260,0.384472,3337.3,3337.2,4.61165804]
[1641468992864,0.384472,3337.3,3336.9,0.3369]
[1641468993263,0.56246842,3337.8,3336.9,0.3369]
[1641468993463,1.49751712,3337.9,3336.9,0.3369]
[1641468993665,1.49751712,3337.9,3337.7,2.00479]
[1641468993864,4.57204842,3338.5,3337.8,0.3369]
[1641468994070,0.56246842,3338.1,3337.8,0.3369]
[1641468994266,0.94694042,3338.1,3337.7,2.00479]
[1641468994468,0.94694042,3338.1,3337.8,0.3369]
[1641468994665,0.384472,3338.1,3337.8,0.3369]
[1641468995164,0.5,3337.9,3337.8,0.3369]
[1641468996566,1.5535,3337.9,3337.7,2.00479]
[1641468996968,0.459982,3337.8,3337.7,2.00479]
[1641468997570,1.02245042,3337.8,3337.7,2.00479]
[1641468997769,0.459982,3337.8,3337.7,2.00479]
[1641468998372,1.02245042,3337.8,3337.7,2.00479]
[1641468998773,0.459982,3337.8,3337.7,2.00479]
[1641468999173,1.5,3337.9,3337.7,2.00479]
[1641468999774,1.5,3337.9,3337.7,2.34169]
[1641468999974,0.459982,3337.8,3337.7,2.34169]
[1641469000280,1.5,3337.9,3337.7,2.34169]
[1641469002075,2.06246842,3337.9,3337.7,2.34169]
[1641469002374,1.5,3337.9,3337.7,2.34169]
[1641469002774,2.06246842,3337.9,3337.7,2.34169]
[1641469002975,1.5,3337.9,3337.7,2.34169]
[1641469003178,0.56246842,3338.2,3337.7,2.34169]
[1641469003375,34.1436,3339.3,3338.0,0.93753158]
[1641469003575,1.06246842,3339.1,3338.6,2.00479]
[1641469003774,0.5,3339.1,3338.7,0.721372]
[1641469003975,0.5,3339.1,3338.7,1.65890358]
[1641469004175,0.56246842,3340.2,3339.0,0.93753158]
[1641469004475,3.51471247,3340.4,3339.2,0.93753158]
[1641469004677,0.56246842,3339.8,3339.2,0.93753158]
[1641469004875,1.00910192,3340.3,3339.3,0.3369]
[1641469005575,2.00479,3340.2,3339.4,2.00479]
[1641469005880,2.00479,3340.2,3339.5,0.721372]
[1641469006675,2.389262,3340.2,3339.5,0.721372]
[1641469007276,1.06246842,3339.7,3339.5,0.721372]
[1641469007777,0.5,3339.9,3339.5,0.721372]
[1641469008175,1.06246842,3339.7,3339.5,0.721372]
[1641469008385,0.5,3339.9,3339.5,0.721372]
[1641469008977,3.06725842,3340.5,3339.5,0.721372]
[1641469009180,3.06725842,3340.5,3339.7,0.43753158]
[1641469009378,3.06725842,3340.5,3339.8,0.3369]
[1641469009577,3.06725842,3340.5,3339.8,2.34169]
[1641469010179,1.06246842,3340.5,3339.8,2.34169]
[1641469010379,1.00910192,3341.3,3340.4,0.43753158]
[1641469010781,1.18330575,3341.8,3341.2,0.43753158]
[1641469010981,1.18330575,3341.8,3341.3,0.721372]
[1641469011179,1.18330575,3341.8,3341.7,0.43753158]
[1641469011379,1.18330575,3341.8,3341.3,1.450972]
[1641469011380,3.08067225,3342.1,3341.5,0.3369]
[1641469011577,3.08067225,3342.1,3341.7,2.00479]
[1641469011779,1.06246842,3342.1,3341.7,2.00479]
[1641469011979,1.06246842,3342.1,3341.7,2.34169]
[1641469012178,2.79985783,3342.2,3341.7,2.34169]
[1641469012378,2.41538583,3342.2,3341.7,2.34169]
[1641469012780,1.06246842,3341.8,3341.7,2.34169]
[1641469013382,3.06725842,3342.4,3341.7,2.34169]
[1641469013685,0.397182,3342.3,3341.7,2.34169]
[1641469013882,3.06725842,3342.4,3341.7,2.34169]
[1641469015184,2.00479,3342.4,3341.7,2.34169]
[1641469015984,2.389262,3342.4,3341.7,2.34169]
[1641469016286,1.06246842,3342.1,3341.7,2.34169]
[1641469016985,1.06246842,3341.8,3341.7,2.00479]
[1641469017183,1.52245042,3341.8,3341.7,2.00479]
[1641469017585,1.91963242,3341.8,3341.3,2.00479]
[1641469017786,2.55840844,3341.4,3340.9,2.00479]
[1641469017984,1.06246842,3341.1,3341.0,0.384472]
[1641469018185,3.01850905,3341.1,3340.6,2.00479]
[1641469018386,1.52245042,3341.1,3340.6,2.00479]
[1641469018986,0.459982,3341.1,3340.6,2.00479]
[1641469019185,1.44694042,3341.4,3340.6,2.77922158]
[1641469019186,1.06246842,3341.4,3340.6,2.77922158]
[1641469019386,2.00479,3341.7,3340.6,2.34169]
[1641469019787,2.00479,3341.7,3341.2,2.00479]
[1641469020191,2.00479,3341.7,3341.3,0.384472]
[1641469020486,2.50479,3341.7,3340.6,2.00479]
[1641469020888,1.06246842,3341.3,3340.6,2.00479]
[1641469021290,1.06246842,3341.3,3340.7,0.3369]
[1641469022091,2.50479,3341.7,3340.8,0.384472]
[1641469023093,3.56725842,3341.7,3340.8,0.384472]
[1641469024700,1.06246842,3341.5,3340.8,0.384472]
[1641469024901,1.06246842,3341.5,3340.9,0.3369]
[1641469025100,0.397182,3341.5,3340.9,0.3369]
[1641469025301,1.06246842,3341.4,3340.9,0.3369]
[1641469025600,0.397182,3341.5,3340.9,0.3369]
[1641469025801,1.06246842,3341.1,3340.9,0.3369]
[1641469026000,0.397182,3341.2,3340.8,0.384472]
[1641469026201,1.06246842,3341.0,3340.8,0.384472]
[1641469026405,0.397182,3341.2,3340.8,0.384472]
[1641469026604,3.56725842,3341.7,3340.8,0.384472]
[1641469027006,1.06246842,3340.9,3340.8,0.384472]
[1641469027205,2.50479,3341.7,3340.8,0.384472]
[1641469027405,1.06246842,3341.1,3340.8,0.384472]
[1641469027603,2.50479,3341.7,3340.8,0.384472]
[1641469027804,1.06246842,3340.9,3340.6,2.00479]
[1641469028005,1.06246842,3340.7,3339.6,47.5799]
[1641469028304,1.06246842,3340.2,3339.4,1.49598254]
[1641469028504,1.06246842,3340.2,3339.8,0.384472]
[1641469028908,0.397182,3340.3,3339.8,0.384472]
[1641469029307,1.06246842,3340.2,3339.8,0.384472]